bitfinex/quotes_BTCUSD_20250331
["timestamp","ask_amount","ask_price","bid_price","bid_amount"]
[1743442713708,0.240171,83274.0,83272.0,0.42337832]
[1743442713998,0.508119,83273.0,83272.0,0.50417832]
[1743442714384,0.520127,83273.0,83272.0,0.50417832]
[1743442714583,0.520127,83273.0,83272.0,0.49817832]
[1743442714783,0.496112,83273.0,83272.0,0.50417832]
[1743442715208,0.496112,83273.0,83272.0,0.42337832]
[1743442715415,0.496112,83273.0,83272.0,0.41737832]
[1743442715615,0.496112,83273.0,83272.0,0.42337832]
[1743442716626,0.496112,83273.0,83272.0,0.42354662]
[1743442718550,0.18306,83273.0,83272.0,0.66372262]
[1743442718752,0.256717,83275.0,83273.0,0.240172]
[1743442718963,0.240167,83276.0,83273.0,0.25218]
[1743442719372,0.240169,83275.0,83273.0,0.240172]
[1743442719529,0.351056,83274.0,83272.0,0.66372262]
[1743442719723,0.272142,83273.0,83272.0,0.66372262]
[1743442720071,0.2404956,83278.0,83277.0,0.240162]
[1743442720072,0.0003366,83278.0,83277.0,0.240162]
[1743442720302,0.0003366,83278.0,83277.0,0.70874832]
[1743442720509,0.1269156,83278.0,83277.0,0.79164832]
[1743442720928,0.0003366,83278.0,83277.0,0.79164832]
[1743442721342,0.0003366,83278.0,83277.0,0.77964032]
[1743442721448,0.2404956,83278.0,83277.0,0.53947832]
[1743442721663,0.9255366,83278.0,83277.0,0.41137832]
[1743442722081,0.9135296,83278.0,83277.0,0.41137832]
[1743442722282,0.8729646,83278.0,83277.0,0.41137832]
[1743442723482,0.6915476,83278.0,83277.0,0.41737832]
[1743442724141,0.6915476,83278.0,83277.0,0.42337832]
[1743442724909,0.6795406,83278.0,83277.0,0.42337832]
[1743442725112,0.6915476,83278.0,83277.0,0.42337832]
[1743442725900,0.72879612,83278.0,83277.0,0.42337832]
[1743442726104,0.6915476,83278.0,83277.0,0.42337832]
[1743442726923,0.6915476,83278.0,83277.0,0.41737832]
[1743442727262,0.6915476,83278.0,83277.0,0.42337832]
[1743442727461,0.28978686,83278.0,83277.0,0.41737832]
[1743442727670,0.68655086,83278.0,83277.0,0.42337832]
[1743442727852,0.67238486,83278.0,83277.0,0.42337832]
[1743442731183,0.03762086,83278.0,83277.0,0.74384032]
[1743442731390,0.03762086,83278.0,83277.0,0.80404832]
[1743442731605,0.0003366,83278.0,83277.0,0.80404832]
[1743442732751,0.0003366,83278.0,83277.0,0.79804832]
[1743442733490,0.0003366,83278.0,83277.0,0.79204832]
[1743442733917,0.0003366,83278.0,83277.0,0.79804832]
[1743442734126,0.0003366,83282.0,83281.0,0.66319872]
[1743442734329,0.0003366,83282.0,83281.0,0.78580258]
[1743442735315,0.0003366,83282.0,83281.0,0.79180258]
[1743442735506,0.0003366,83282.0,83281.0,0.79780258]
[1743442736413,0.0003366,83282.0,83281.0,0.79180258]
[1743442737701,0.0003366,83282.0,83281.0,0.79780258]
[1743442739507,0.0003366,83282.0,83281.0,0.87420258]
[1743442739705,0.240116,83293.0,83289.0,0.240125]
[1743442739908,0.359951,83292.0,83290.0,0.41036752]
[1743442740064,0.24025595,83293.0,83290.0,0.41036752]
[1743442740271,0.235075,83292.0,83290.0,0.41036752]
[1743442740667,0.475194,83292.0,83290.0,0.41036752]
[1743442740894,0.252127,83291.0,83290.0,0.41036752]
[1743442741067,1.144551,83291.0,83290.0,0.41036752]
[1743442741431,1.111265,83291.0,83290.0,0.41036752]
[1743442741819,1.111265,83291.0,83290.0,0.42236752]
[1743442742588,1.111265,83291.0,83290.0,0.41636752]
[1743442742787,1.111265,83291.0,83290.0,0.42236752]
[1743442743196,0.469534,83291.0,83290.0,0.41636752]
[1743442743392,0.412368,83291.0,83290.0,0.41636752]
[1743442743602,0.119241,83291.0,83290.0,0.42236752]
[1743442743778,0.00013995,83293.0,83292.0,0.252124]
[1743442744772,0.240119,83292.0,83290.0,0.41036752]
[1743442744979,0.240121,83291.0,83290.0,0.41036752]
[1743442745598,1.036497,83291.0,83290.0,0.41036752]
[1743442745798,0.991766,83291.0,83290.0,0.41036752]
[1743442746582,0.851282,83291.0,83290.0,0.41036752]
[1743442746787,0.838979,83291.0,83290.0,0.41036752]
[1743442747384,0.838979,83291.0,83290.0,0.41636752]
[1743442747624,0.778896,83291.0,83290.0,0.42236752]
[1743442747784,0.705217,83291.0,83290.0,0.42236752]
[1743442753010,0.74242598,83291.0,83290.0,0.42236752]
[1743442754217,0.74242598,83291.0,83290.0,0.40155625]
[1743442754423,3.03272898,83291.0,83290.0,0.40155625]
[1743442754627,3.03272898,83291.0,83290.0,0.39555625]
[1743442755169,3.03272898,83291.0,83290.0,0.40155625]
[1743442756366,3.03272898,83291.0,83290.0,0.40755625]
[1743442758539,3.15533284,83291.0,83290.0,0.40755625]
[1743442759830,3.15533284,83291.0,83285.0,0.0001684]
[1743442759831,0.252142,83286.0,83285.0,0.0001684]
[1743442760042,3.16988869,83286.0,83285.0,0.0001684]
[1743442761537,3.20597569,83286.0,83285.0,0.0001684]
[1743442761718,3.20697569,83286.0,83285.0,0.0031684]
[1743442761916,3.20697569,83286.0,83285.0,0.0091684]
[1743442762097,3.19143484,83286.0,83285.0,0.0061684]
[1743442762296,2.31666284,83286.0,83285.0,0.0061684]
[1743442762502,1.81951498,83286.0,83285.0,0.0091684]
[1743442763206,1.08722198,83286.0,83285.0,0.40472465]
[1743442763410,1.06331898,83286.0,83285.0,0.40472465]
[1743442764288,0.388524,83286.0,83285.0,0.40472465]
[1743442764494,0.42574294,83286.0,83285.0,0.40472465]
[1743442764694,0.42474294,83286.0,83285.0,0.39572465]
[1743442765040,0.42574294,83286.0,83285.0,0.39572465]
[1743442765680,0.29136094,83286.0,83285.0,0.39872465]
[1743442766108,3.03475394,83286.0,83285.0,0.39872465]
[1743442766482,2.79149594,83286.0,83285.0,0.39872465]
[1743442768864,2.92864065,83286.0,83285.0,0.39872465]
[1743442770196,2.92764065,83286.0,83285.0,0.39872465]
[1743442770658,2.92764065,83286.0,83285.0,0.39772465]
[1743442771035,2.92864065,83286.0,83285.0,0.40072465]
[1743442771711,2.9140998,83286.0,83285.0,0.40072465]
[1743442773572,3.35124451,83286.0,83285.0,0.40072465]
[1743442773743,3.22864065,83286.0,83285.0,0.40072465]
[1743442774127,3.09149594,83286.0,83285.0,0.40072465]
[1743442775452,3.22864065,83286.0,83285.0,0.40072465]
[1743442775786,0.72850565,83286.0,83285.0,0.40072465]
[1743442776021,0.95019069,83286.0,83285.0,6.5e-07]
[1743442776685,0.94919069,83286.0,83285.0,6.5e-07]
[1743442776892,1.09011069,83286.0,83285.0,6.5e-07]
[1743442777094,0.552179,83274.0,83273.0,0.416]
[1743442777304,0.56672185,83273.0,83272.0,0.0001683]
[1743442777504,3.43271871,83273.0,83272.0,0.0001683]
[1743442779732,3.43371871,83273.0,83272.0,0.0001683]
[1743442779933,3.42017786,83273.0,83272.0,0.0001683]
[1743442785994,3.45733045,83273.0,83272.0,0.0001683]
[1743442792531,0.71393745,83273.0,83272.0,0.0001683]
[1743442792740,3.45733045,83273.0,83272.0,0.0001683]
[1743442794200,2.12896759,83273.0,83272.0,0.0001683]
[1743442794374,0.38280259,83273.0,83272.0,0.0001683]
[1743442794590,0.416537,83273.0,83272.0,0.0460683]
[1743442794792,0.428545,83273.0,83272.0,0.0460683]
[1743442795360,0.149297,83273.0,83272.0,0.0460683]
[1743442795565,0.401478,83273.0,83272.0,0.0460683]
[1743442798312,0.401478,83273.0,83272.0,0.4620683]
[1743442799371,0.149297,83273.0,83272.0,0.4620683]
[1743442799592,0.214352,83273.0,83272.0,0.7022443]
[1743442799775,0.002,83273.0,83272.0,0.7142523]
[1743442799976,0.001,83273.0,83272.0,0.7142523]
[1743442800203,0.036085,83287.0,83284.0,0.24014]
[1743442800406,0.34727123,83288.0,83282.0,0.0819]
[1743442800407,0.240141,83285.0,83282.0,0.0799]
[1743442800582,0.2261153,83284.0,83282.0,0.0799]
[1743442800783,0.3650043,83283.0,83282.0,0.0799]
[1743442801006,0.148861,83283.0,83282.0,0.735047]
[1743442801178,0.134476,83283.0,83282.0,0.782847]
[1743442801382,0.134476,83285.0,83282.0,0.782847]
[1743442801582,0.135476,83285.0,83282.0,0.783847]
[1743442801834,0.134476,83284.0,83282.0,0.783847]
[1743442802146,0.0013368,83285.0,83284.0,0.240142]
[1743442802342,0.0013368,83285.0,83284.0,0.252149]
[1743442802759,0.0023368,83285.0,83284.0,0.252149]
[1743442803389,0.0003368,83285.0,83284.0,0.252149]
[1743442803574,0.0013368,83285.0,83284.0,0.252149]
[1743442803749,0.0013368,83285.0,83284.0,0.251149]
[1743442804347,0.0023368,83285.0,83284.0,0.003]
[1743442804551,0.2544818,83285.0,83284.0,0.003]
[1743442804782,1.1479208,83285.0,83284.0,0.003]
[1743442805182,0.8540378,83285.0,83284.0,0.003]
[1743442805586,0.0023368,83285.0,83284.0,0.243142]
[1743442805928,0.0023368,83285.0,83284.0,0.255149]
[1743442806473,0.0023368,83285.0,83284.0,0.335549]
[1743442807251,0.0023368,83285.0,83284.0,0.751549]
[1743442807436,0.0023368,83285.0,83284.0,0.4994]
[1743442807636,0.2424758,83285.0,83284.0,0.4994]
[1743442808047,0.0023368,83285.0,83284.0,0.4994]
[1743442808603,0.0003368,83285.0,83284.0,0.4964]
[1743442808980,0.0013368,83285.0,83284.0,0.4984]
[1743442809952,0.2424758,83285.0,83284.0,0.5024]
[1743442810172,0.0023368,83285.0,83284.0,0.5024]
[1743442811448,0.0023368,83285.0,83284.0,0.742542]
[1743442811818,0.0023368,83285.0,83284.0,0.754549]
[1743442811976,0.0023368,83285.0,83284.0,0.5024]
[1743442812151,0.0023368,83285.0,83284.0,0.742542]
[1743442812498,0.0023368,83285.0,83284.0,0.5024]
[1743442812918,0.2424758,83285.0,83284.0,0.5024]
[1743442813552,1.3256588,83285.0,83284.0,0.422]
[1743442813765,0.9982208,83285.0,83284.0,0.422]
[1743442814600,0.9962208,83285.0,83284.0,0.416]
[1743442815004,0.9982208,83285.0,83284.0,0.421]
[1743442815862,0.9972208,83285.0,83284.0,0.419]
[1743442816311,0.9972208,83285.0,83284.0,0.418]
[1743442816515,0.9982208,83285.0,83284.0,0.421]
[1743442817799,0.73597439,83285.0,83284.0,0.421]
[1743442818012,1.48702325,83285.0,83284.0,0.421]
[1743442818215,0.552152,83283.0,83282.0,4e-07]
[1743442818415,0.67475586,83283.0,83282.0,4e-07]
[1743442818811,0.68929671,83283.0,83282.0,4e-07]
[1743442819410,0.69029671,83283.0,83282.0,0.0020004]
[1743442819775,3.42392571,83283.0,83282.0,0.0020004]
[1743442819994,3.42392571,83283.0,83282.0,0.0050004]
[1743442820224,3.42492571,83283.0,83282.0,0.0050004]
[1743442822886,3.54752957,83283.0,83282.0,0.0050004]
[1743442824379,3.68716957,83283.0,83282.0,0.0050004]
[1743442826055,3.72429514,83283.0,83282.0,0.0050004]
[1743442826462,0.552181,83273.0,83272.0,0.0001683]
[1743442826681,3.46832716,83273.0,83272.0,0.0001683]
[1743442827164,3.536275,83273.0,83272.0,0.0001683]
[1743442827293,3.49915471,83273.0,83272.0,0.0001683]
[1743442827504,3.53626729,83273.0,83272.0,0.0001683]
[1743442827924,3.46006729,83273.0,83272.0,0.0001683]
[1743442828311,3.46106729,83273.0,83272.0,0.0001683]
[1743442828515,3.16106729,83273.0,83272.0,0.0001683]
[1743442828709,3.12295471,83273.0,83272.0,0.0001683]
[1743442829127,3.16106622,83273.0,83272.0,0.0001683]
[1743442829332,3.16206622,83273.0,83272.0,0.0001683]
[1743442829534,3.16106622,83273.0,83272.0,0.0001683]
[1743442829994,3.16206622,83273.0,83272.0,0.0001683]
[1743442830414,3.16106622,83273.0,83272.0,0.0001683]
[1743442830616,3.16206622,83273.0,83272.0,0.0001683]
[1743442831039,3.12395471,83273.0,83272.0,0.0001683]
[1743442831384,3.16206875,83273.0,83272.0,0.0001683]
[1743442833062,3.12495471,83273.0,83272.0,0.0001683]
[1743442833725,2.98781,83273.0,83272.0,0.0001683]
[1743442834852,2.98681,83273.0,83272.0,0.0001683]
[1743442835130,2.98781,83273.0,83272.0,0.0001683]
[1743442835325,2.98681,83273.0,83272.0,0.0001683]
[1743442835682,2.98781,83273.0,83272.0,0.0001683]
[1743442836286,3.11041386,83273.0,83272.0,0.0001683]
[1743442836699,3.24755857,83273.0,83272.0,0.0001683]
[1743442836929,3.4620544,83273.0,83272.0,0.0001683]
[1743442837138,3.4620544,83273.0,83272.0,3e-07]
[1743442837338,0.7284254,83273.0,83272.0,3e-07]
[1743442837768,0.7274254,83273.0,83272.0,3e-07]
[1743442838119,0.8676654,83273.0,83272.0,3e-07]
[1743442838323,0.252245,83252.0,83251.0,0.0001684]
[1743442838520,2.985874,83252.0,83251.0,0.0001684]
[1743442839768,1.80537361,83252.0,83251.0,0.0001684]
[1743442839945,1.80637361,83252.0,83251.0,0.0001684]
[1743442840176,1.80737361,83252.0,83251.0,0.0001684]
[1743442845789,0.65406161,83252.0,83251.0,0.0001684]
[1743442845989,0.40181661,83252.0,83251.0,0.0001684]
[1743442846190,0.23472361,83252.0,83251.0,0.25098672]
[1743442846393,0.00204661,83252.0,83251.0,0.34079772]
[1743442846626,0.19938861,83252.0,83251.0,0.08854972]
[1743442846830,1.05960761,83252.0,83251.0,0.08854972]
[1743442847184,2.98792061,83252.0,83251.0,0.0001684]
[1743442847608,3.11052447,83252.0,83251.0,0.0001684]
[1743442847809,3.14768142,83252.0,83251.0,0.0001684]
[1743442848219,3.14668142,83252.0,83251.0,0.0001684]
[1743442848619,3.46122227,83252.0,83251.0,0.0001684]
[1743442848882,3.46122227,83252.0,83247.0,0.0001684]
[1743442848883,0.56679885,83248.0,83247.0,0.0001684]
[1743442849087,0.252294,83236.0,83230.0,0.0001684]
[1743442849292,3.46022466,83236.0,83230.0,0.0001684]
[1743442849442,3.46022466,83236.0,83235.0,0.00834433]
[1743442849640,0.56685585,83229.0,83212.0,0.0494]
[1743442849810,0.252342,83220.0,83211.0,0.00075159]
[1743442850015,0.38948671,83220.0,83211.0,0.00075159]
[1743442850276,3.12311571,83220.0,83211.0,0.00075159]
[1743442851128,3.12311571,83220.0,83219.0,0.00025806]
[1743442852643,3.12411571,83220.0,83219.0,0.00025806]
[1743442852874,3.42511571,83220.0,83219.0,0.00025806]
[1743442853047,3.45624765,83220.0,83219.0,6e-08]
[1743442853268,0.72261865,83220.0,83219.0,6e-08]
[1743442853491,0.552366,83212.0,83211.0,6.5e-07]
[1743442853693,0.68951071,83212.0,83211.0,0.00014062]
[1743442853817,0.68951071,83212.0,83211.0,6.2e-07]
[1743442854020,3.42313971,83212.0,83211.0,6.2e-07]
[1743442854237,0.252391,83204.0,83196.0,0.416]
[1743442854436,0.252406,83199.0,83198.0,0.00046589]
[1743442854636,0.38955071,83199.0,83198.0,8.9e-07]
[1743442854999,0.240422,83187.0,83186.0,0.0829]
[1743442855201,2.705663,83187.0,83186.0,0.0829]
[1743442855427,2.633683,83187.0,83186.0,0.0779]
[1743442855574,2.490251,83187.0,83186.0,0.0779]
[1743442855778,1.227451,83187.0,83186.0,0.0779]
[1743442855983,1.227451,83187.0,83186.0,0.06985181]
[1743442856184,0.721234,83187.0,83186.0,0.06985181]
[1743442856703,0.68881,83187.0,83186.0,0.06985181]
[1743442856920,0.656614,83187.0,83186.0,0.06985181]
[1743442857323,0.655614,83187.0,83186.0,0.06985181]
[1743442857699,0.656614,83187.0,83186.0,0.06985181]
[1743442858973,0.254443,83187.0,83186.0,0.06985181]
[1743442859128,0.935472,83187.0,83186.0,0.06985181]
[1743442859336,0.394012,83187.0,83186.0,0.06985181]
[1743442859935,0.406033,83187.0,83186.0,0.06985181]
[1743442860135,0.406033,83187.0,83186.0,0.07625159]
[1743442862742,0.406033,83187.0,83186.0,0.00639978]
[1743442863162,0.24043,83184.0,83183.0,0.4614]
[1743442863390,0.18737,83184.0,83183.0,0.4614]
[1743442863593,0.242422,83187.0,83183.0,0.4614]
[1743442863594,0.240422,83187.0,83186.0,0.0001685]
[1743442863998,1.103949,83187.0,83186.0,0.0001685]
[1743442864585,0.252448,83185.0,83184.0,0.2991685]
[1743442864787,1.839554,83185.0,83184.0,0.2991685]
[1743442864992,1.257614,83185.0,83184.0,0.2991685]
[1743442865368,0.388948,83185.0,83184.0,0.2991685]
[1743442865774,0.389948,83185.0,83184.0,0.2991685]
[1743442867230,0.389948,83185.0,83184.0,0.29546784]
[1743442867845,0.390948,83185.0,83184.0,0.29646784]
[1743442869023,0.390948,83185.0,83184.0,0.001]
[1743442871117,0.27312486,83185.0,83169.0,0.0789]
[1743442871244,0.252494,83170.0,83169.0,0.0789]
[1743442871451,0.996802,83170.0,83169.0,0.0789]
[1743442871683,0.980402,83170.0,83169.0,0.3789]
[1743442871903,0.992425,83170.0,83169.0,0.3789]
[1743442872084,0.992425,83170.0,83169.0,0.00545299]
[1743442872345,1.11502886,83170.0,83169.0,0.00545299]
[1743442872519,0.2525,83168.0,83167.0,0.0001685]
[1743442872761,3.10873286,83168.0,83167.0,0.00063476]
[1743442873418,0.240558,83140.0,83139.0,0.0702121]
[1743442873739,0.240558,83140.0,83139.0,0.07578293]
[1743442874143,0.252585,83140.0,83139.0,0.07578293]
[1743442874349,0.252585,83140.0,83139.0,0.0702121]
[1743442874552,0.25305068,83140.0,83139.0,0.0702121]
[1743442874757,0.25405068,83140.0,83139.0,0.0702121]
[1743442874958,0.25405068,83140.0,83139.0,0.0757927]
[1743442875241,0.93573268,83140.0,83139.0,0.0453]
[1743442875486,0.252597,83136.0,83134.0,8e-05]
[1743442875680,1.092494,83136.0,83134.0,8e-05]
[1743442876307,1.21509786,83136.0,83134.0,8e-05]
[1743442876955,0.012028,83135.0,83134.0,5e-07]
[1743442877145,0.012033,83103.0,83092.0,0.416]
[1743442877352,0.012033,83101.0,83100.0,2e-07]
[1743442877630,0.3928565,83101.0,83100.0,2e-07]
[1743442877839,0.3928565,83101.0,83064.0,0.0795]
[1743442877840,0.25116943,83092.0,83091.0,2e-07]
[1743442878082,0.38831414,83092.0,83091.0,2e-07]
[1743442878291,0.26729685,83084.0,83083.0,9e-07]
[1743442878498,0.37535986,83084.0,83083.0,9e-07]
[1743442878705,0.252756,83084.0,83083.0,9e-07]
[1743442879322,0.38990071,83084.0,83083.0,9e-07]
[1743442880416,0.37535986,83084.0,83083.0,9e-07]
[1743442881227,0.39090071,83084.0,83083.0,9e-07]
[1743442883986,0.37635986,83084.0,83083.0,9e-07]
[1743442886002,0.39090071,83084.0,83083.0,9e-07]
[1743442886807,0.38990071,83084.0,83083.0,9e-07]
[1743442887011,0.37635986,83084.0,83083.0,9e-07]
[1743442887435,0.39090071,83084.0,83083.0,9e-07]
[1743442887633,0.253756,83084.0,83083.0,9e-07]
[1743442888426,0.252756,83084.0,83083.0,9e-07]
[1743442888627,0.001,83084.0,83083.0,9e-07]
[1743442888833,0.001,83084.0,83083.0,0.24819276]
[1743442889011,0.001,83084.0,83083.0,0.00746976]
[1743442889412,0.001,83084.0,83083.0,0.26022876]
[1743442889888,0.00046511,83092.0,83083.0,0.26022876]
[1743442889889,0.00046511,83092.0,83088.0,0.012035]
[1743442890090,0.00046511,83092.0,83089.0,0.240703]
[1743442890351,0.00046511,83092.0,83089.0,0.24713318]
[1743442890578,0.00046511,83092.0,83089.0,0.00743018]
[1743442890965,0.00046511,83092.0,83088.0,0.240707]
[1743442891167,0.00046511,83092.0,83090.0,0.00642457]
[1743442891368,0.00046511,83092.0,83089.0,0.00718018]
[1743442891731,0.00046511,83092.0,83090.0,0.00717457]
[1743442891732,2.363477,83091.0,83090.0,0.00717457]
[1743442891907,2.150562,83091.0,83090.0,0.00717457]
[1743442892111,0.953762,83091.0,83085.0,0.416]
[1743442892317,0.323824,83090.0,83085.0,0.656716]
[1743442892475,0.656201,83089.0,83086.0,0.00718966]
[1743442892685,0.25419811,83092.0,83086.0,0.00718966]
[1743442892686,0.348621,83088.0,83086.0,0.00718966]
[1743442892882,0.212099,83087.0,83086.0,0.00718966]
[1743442893083,0.214922,83087.0,83086.0,0.00718966]
[1743442893282,0.240702,83090.0,83089.0,0.001]
[1743442893283,0.240704,83090.0,83089.0,0.001]
[1743442893695,0.240704,83090.0,83089.0,0.00817282]
[1743442893898,0.415909,83089.0,83085.0,0.416]
[1743442894093,0.001,83087.0,83086.0,0.002]
[1743442894325,0.255367,83087.0,83086.0,0.002]
[1743442894659,0.252749,83086.0,83085.0,0.416]
[1743442894867,1.085953,83086.0,83085.0,0.416]
[1743442895355,0.252749,83086.0,83085.0,0.416]
[1743442895715,1.163031,83086.0,83085.0,0.416]
[1743442897317,1.164031,83086.0,83085.0,0.418]
[1743442898735,0.911282,83086.0,83085.0,0.42519527]
[1743442899063,1.151996,83086.0,83085.0,0.42519527]
[1743442899212,0.196896,83086.0,83085.0,0.42519527]
[1743442899428,0.137353,83086.0,83085.0,0.67794727]
[1743442899633,0.001,83086.0,83085.0,0.67811587]
[1743442899977,0.001,83086.0,83085.0,0.42536387]
[1743442900743,1.491503,83086.0,83085.0,0.42536387]
[1743442900939,1.859348,83086.0,83085.0,0.42536387]
[1743442901148,1.883153,83086.0,83085.0,0.42536387]
[1743442901342,1.869594,83086.0,83085.0,0.4181686]
[1743442901578,1.869594,83086.0,83085.0,0.42536387]
[1743442901739,1.92125,83086.0,83085.0,0.42536387]
[1743442902093,1.722915,83086.0,83085.0,0.42536387]
[1743442902462,1.73495,83086.0,83085.0,0.42536387]
[1743442903065,1.73495,83086.0,83085.0,0.4181686]
[1743442903288,1.482201,83086.0,83085.0,0.4181686]
[1743442903507,1.722915,83086.0,83085.0,0.4181686]
[1743442903809,1.722915,83086.0,83085.0,0.42535812]
[1743442904163,1.722915,83086.0,83085.0,0.00935812]
[1743442904599,1.722915,83086.0,83085.0,0.0021686]
[1743442905074,1.74949085,83086.0,83085.0,0.0021686]
[1743442906691,0.39089371,83086.0,83085.0,0.0021686]
[1743442906890,3.14736771,83086.0,83085.0,0.0021686]
[1743442907089,3.22996771,83086.0,83085.0,0.0021686]
[1743442907316,3.26696614,83086.0,83085.0,0.0021686]
[1743442907726,3.26596614,83086.0,83085.0,0.0001686]
[1743442907929,3.26696614,83086.0,83085.0,0.0011686]
[1743442909388,3.26596614,83086.0,83085.0,0.0001686]
[1743442909801,3.18336614,83086.0,83085.0,0.0001686]
[1743442910014,3.18436614,83086.0,83085.0,0.0011686]
[1743442913090,0.49161343,83086.0,83085.0,0.0011686]
[1743442913210,0.33999843,83086.0,83085.0,0.2418856]
[1743442913408,0.33999843,83086.0,83085.0,0.00832536]
[1743442913811,0.33899843,83086.0,83085.0,0.00732536]
[1743442914271,0.33899843,83086.0,83085.0,0.00832536]
[1743442914272,0.33999843,83086.0,83085.0,0.00832536]
[1743442915073,0.33999843,83086.0,83085.0,0.26107736]
[1743442915446,0.33999843,83086.0,83085.0,0.24904236]
[1743442915647,0.30433143,83086.0,83085.0,0.24904236]
[1743442916039,0.30333143,83086.0,83085.0,0.24804236]
[1743442916271,0.30333143,83086.0,83085.0,0.26007736]
[1743442916272,0.24747543,83086.0,83085.0,0.26007736]
[1743442916470,0.24847543,83086.0,83085.0,0.26107736]
[1743442916891,0.14314143,83086.0,83085.0,0.26107736]
[1743442917088,0.03799843,83086.0,83085.0,0.26107736]
[1743442917710,0.001,83086.0,83085.0,0.26107736]
[1743442918488,0.259848,83086.0,83085.0,0.26107736]
[1743442918852,0.228053,83086.0,83085.0,0.26107736]
[1743442918974,0.133445,83086.0,83085.0,0.26107736]
[1743442919179,0.132445,83086.0,83085.0,0.26007736]
[1743442919417,0.174689,83090.0,83089.0,0.25274]
[1743442919640,0.0003372,83091.0,83090.0,0.252737]
[1743442919837,0.2363982,83091.0,83090.0,0.25985469]
[1743442919989,0.0003372,83091.0,83090.0,0.25985469]
[1743442920197,0.1954012,83091.0,83090.0,0.25985469]
[1743442920396,0.1954012,83091.0,83090.0,0.24781969]
[1743442920715,0.1954012,83091.0,83090.0,0.24681969]
[1743442920924,0.1954012,83091.0,83090.0,0.25885469]
[1743442921092,0.1954012,83091.0,83090.0,0.24681969]
[1743442921279,0.1964012,83091.0,83090.0,0.24781969]
[1743442921846,0.1964012,83091.0,83090.0,0.25985469]
[1743442922016,0.1964012,83091.0,83090.0,0.00811769]
[1743442922233,0.58627891,83091.0,83090.0,0.00811769]
[1743442922409,0.62349244,83091.0,83090.0,0.001]
[1743442922998,0.252749,83086.0,83085.0,0.0001686]
[1743442923331,2.10883938,83086.0,83085.0,0.00731087]
[1743442923537,2.05043338,83086.0,83085.0,0.0001686]
[1743442924336,2.05143338,83086.0,83085.0,0.0041686]
[1743442924535,0.42810724,83086.0,83085.0,0.0041686]
[1743442924749,2.88458124,83086.0,83085.0,0.0041686]
[1743442926067,2.88358124,83086.0,83085.0,0.0001686]
[1743442926485,2.88458124,83086.0,83085.0,0.0041686]
[1743442931054,3.3071851,83086.0,83085.0,0.0041686]
[1743442931265,3.33006124,83086.0,83085.0,6e-07]
[1743442931468,0.87358724,83086.0,83085.0,6e-07]
[1743442932255,0.552756,83084.0,83083.0,9e-07]
[1743442932430,0.72711424,83084.0,83083.0,9e-07]
[1743442933473,0.72811424,83084.0,83083.0,0.0030009]
[1743442933678,0.252822,83062.0,83061.0,0.004]
[1743442933877,2.88365424,83062.0,83061.0,0.004]
[1743442934810,2.88411906,83062.0,83061.0,0.004]
[1743442936228,2.64433606,83062.0,83061.0,0.004]
[1743442936443,0.8721402,83062.0,83061.0,0.004]
[1743442936759,0.77590382,83062.0,83061.0,0.01130173]
[1743442936888,0.78894282,83062.0,83061.0,0.004]
[1743442937089,0.78894282,83062.0,83061.0,0.01130173]
[1743442937290,0.78894282,83062.0,83061.0,0.004]
[1743442937503,0.77690382,83062.0,83061.0,0.01131952]
[1743442937702,0.01350382,83062.0,83061.0,0.004]
[1743442937923,0.67013782,83062.0,83061.0,0.01131952]
[1743442938340,0.66913782,83062.0,83061.0,0.004]
[1743442938545,0.80628253,83062.0,83061.0,0.004]
[1743442938769,0.80728253,83062.0,83061.0,0.004]
[1743442939162,0.80628253,83062.0,83061.0,0.004]
[1743442939375,0.86438545,83062.0,83061.0,0.004]
[1743442939717,0.84443098,83062.0,83061.0,0.004]
[1743442940125,0.84343098,83062.0,83061.0,0.004]
[1743442940401,0.84343098,83062.0,83031.0,0.0695]
[1743442940402,0.252913,83032.0,83031.0,0.0695]
[1743442940575,1.136967,83032.0,83031.0,0.0695]
[1743442940785,1.05888,83032.0,83031.0,0.06967269]
[1743442940913,1.05888,83032.0,83031.0,0.01859582]
[1743442941194,1.11676908,83032.0,83031.0,0.01859582]
[1743442941807,1.11723361,83032.0,83031.0,0.01859582]
[1743442942271,0.32580746,83032.0,83031.0,0.01859582]
[1743442942417,2.78228146,83032.0,83031.0,0.01859582]
[1743442942624,0.26745985,83030.0,83029.0,0.01145392]
[1743442942828,2.72393385,83030.0,83029.0,0.01145392]
[1743442943055,2.47101485,83030.0,83029.0,0.01145392]
[1743442943256,0.884891,83030.0,83029.0,0.01145392]
[1743442943411,0.884891,83030.0,83029.0,0.02909541]
[1743442943412,0.35329808,83030.0,83029.0,0.02909541]
[1743442943611,0.05788908,83030.0,83029.0,0.11059541]
[1743442944233,0.06901027,83030.0,83029.0,0.11059541]
[1743442944451,0.03338622,83030.0,83029.0,0.11059541]
[1743442944678,0.03338622,83030.0,83029.0,0.09855241]
[1743442944884,0.03338622,83030.0,83029.0,0.01705241]
[1743442944885,0.77031922,83030.0,83029.0,0.01705241]
[1743442945080,1.03648022,83030.0,83029.0,0.01705241]
[1743442945288,1.14081522,83030.0,83029.0,0.01705241]
[1743442945628,1.74324622,83030.0,83029.0,0.01705241]
[1743442946387,1.57383522,83030.0,83029.0,0.01705241]
[1743442946587,1.28496022,83030.0,83029.0,0.01705241]
[1743442947611,0.86902222,83030.0,83029.0,0.01705241]
[1743442947957,0.69471822,83030.0,83029.0,0.01705241]
[1743442948182,0.43695622,83030.0,83029.0,0.01705241]
[1743442949345,0.43595622,83030.0,83029.0,0.01705241]
[1743442949763,0.43695622,83030.0,83029.0,0.01705241]
[1743442949994,0.42583503,83030.0,83029.0,0.01705241]
[1743442950490,0.02326503,83030.0,83029.0,0.01705241]
[1743442950962,0.55832203,83030.0,83029.0,0.01705241]
[1743442951363,0.536057,83030.0,83029.0,0.01705241]
[1743442951780,0.535057,83030.0,83029.0,0.01705241]
[1743442952163,0.536057,83030.0,83029.0,0.01705241]
[1743442952519,0.001,83030.0,83029.0,0.02909541]
[1743442952859,0.001,83030.0,83029.0,0.01705241]
[1743442953262,0.665382,83030.0,83029.0,0.01705241]
[1743442953465,0.583182,83030.0,83029.0,0.01705241]
[1743442953685,0.552267,83030.0,83029.0,0.01705241]
[1743442954187,0.288522,83030.0,83029.0,0.26997441]
[1743442954528,0.001,83030.0,83029.0,0.34927441]
[1743442956667,0.001,83030.0,83029.0,0.76527441]
[1743442958775,0.00046453,83032.0,83031.0,0.252916]
[1743442959083,0.00046453,83032.0,83031.0,0.251916]